fUST/lending_fUST_20240815
["ID","MTS","AMOUNT","RATE_DAILY","PERIOD"]
[334971286,1723695042180,-500.0,0.00013698,2]
[334971287,1723695042190,-500.0,0.00013698,2]
[334971288,1723695042199,-500.0,0.00013698,2]
[334971289,1723695042208,-500.0,0.00013698,2]
[334971290,1723695042218,-500.0,0.00013698,2]
[334971291,1723695042233,-500.0,0.00013698,2]
[334971292,1723695042244,-500.0,0.00013698,2]
[334971293,1723695042255,-500.0,0.00013698,2]
[334971294,1723695042268,-952.42,0.00013698,2]
[334971295,1723695042278,-500.0,0.00013698,2]
[334971296,1723695042289,-500.0,0.00013698,2]
[334971297,1723695042301,-500.0,0.00013698,2]
[334971298,1723695042311,-500.0,0.00013698,2]
[334971299,1723695042322,-533.0991628,0.00013698,2]
[334971300,1723695042334,-500.0,0.00013698,2]
[334971301,1723695042345,-753.42,0.00013698,2]
[334971302,1723695042358,-620.83,0.00013698,2]
[334971303,1723695042367,-500.0,0.00013698,2]
[334971304,1723695042377,-500.0,0.00013698,2]
[334971305,1723695042387,-500.0,0.00013698,2]
[334971306,1723695042397,-500.0,0.00013698,2]
[334971307,1723695042407,-834.75,0.00013698,2]
[334971308,1723695042417,-151.0,0.00013698,2]
[334971309,1723695042428,-151.0,0.00013698,2]
[334971310,1723695042439,-500.0,0.00013698,2]
[334971311,1723695042451,-151.0,0.00013698,2]
[334971312,1723695042462,-151.0,0.00013698,2]
[334971313,1723695042471,-151.0,0.00013698,2]
[334971314,1723695042480,-151.0,0.00013698,2]
[334971315,1723695042489,-397.96974938,0.00013698,2]
[334971316,1723695042499,-151.0,0.00013698,2]
[334971317,1723695042508,-151.0,0.00013698,2]
[334971318,1723695042519,-193.025467,0.00013698,2]
[334971319,1723695042528,-500.0,0.00013698,2]
[334971320,1723695042537,-364.427763,0.00013698,2]
[334971321,1723695042546,-364.427763,0.00013698,2]
[334971322,1723695042555,-364.427763,0.00013698,2]
[334971323,1723695042565,-293.59841002,0.00013698,2]
[334971324,1723695042576,-364.427763,0.00013698,2]
[334971325,1723695042586,-364.427763,0.00013698,2]
[334971326,1723695042598,-364.427763,0.00013698,2]
[334971327,1723695042611,-364.427763,0.00013698,2]
[334971328,1723695042620,-364.427763,0.00013698,2]
[334971329,1723695042630,-500.0,0.00013698,2]
[334971330,1723695042639,-364.427763,0.00013698,2]
[334971331,1723695042762,-735.5,0.00013698,2]
[334971332,1723695042794,-364.427763,0.00013698,2]
[334971333,1723695042807,-364.427763,0.00013698,2]
[334971334,1723695042818,-364.427763,0.00013698,2]
[334971335,1723695042828,-364.427763,0.00013698,2]
[334971336,1723695042840,-500.0,0.00013698,2]
[334971337,1723695042850,-364.427763,0.00013698,2]
[334971338,1723695042860,-364.427763,0.00013698,2]
[334971339,1723695042870,-500.0,0.00013698,2]
[334971340,1723695042880,-364.427763,0.00013698,2]
[334971341,1723695042889,-364.427763,0.00013698,2]
[334971342,1723695042898,-364.427763,0.00013698,2]
[334971343,1723695042908,-500.0,0.00013698,2]
[334971344,1723695042932,-507.31,0.00013698,2]
[334971345,1723695042942,-749.67,0.00013698,2]
[334971346,1723695042952,-500.0,0.00013698,2]
[334971347,1723695042962,-519.54104557,0.00013698,2]
[334971348,1723695042972,-500.0,0.00013698,2]
[334971349,1723695042981,-502.44697057,0.00013698,2]
[334971350,1723695042990,-868.14,0.00013698,2]
[334971351,1723695042999,-500.0,0.00013698,2]
[334971352,1723695043008,-765.82,0.00013698,2]
[334971353,1723695043020,-828.37,0.00013698,2]
[334971354,1723695043031,-708.17,0.00013698,2]
[334971355,1723695043042,-500.0,0.00013698,2]
[334971356,1723695043051,-536.95,0.00013698,2]
[334971357,1723695043060,-500.0,0.00013698,2]
[334971358,1723695043070,-151.0,0.00013698,2]
[334971359,1723695043079,-207.088056,0.00013698,2]
[334971360,1723695043088,-500.0,0.00013698,2]
[334971361,1723695043097,-500.0,0.00013698,2]
[334971363,1723695043107,-1120.52,0.00013698,2]
[334971365,1723695043118,-505.12690337,0.00013698,2]
[334971366,1723695043127,-810.43,0.00013698,2]
[334971367,1723695043138,-500.0,0.00013698,2]
[334971368,1723695043148,-500.0,0.00013698,2]
[334971371,1723695043160,-500.0,0.00013698,2]
[334971374,1723695043169,-500.0,0.00013698,2]
[334971377,1723695043179,-500.0,0.00013698,2]
[334971379,1723695043188,-500.0,0.00013698,2]
[334971381,1723695043197,-500.0,0.00013698,2]
[334971382,1723695043206,-690.26,0.00013698,2]
[334971384,1723695043215,-500.0,0.00013698,2]
[334971386,1723695043227,-500.0,0.00013698,2]
[334971388,1723695043237,-500.0,0.00013698,2]
[334971390,1723695043246,-500.0,0.00013698,2]
[334971392,1723695043256,-502.78260389,0.00013698,2]
[334971393,1723695043265,-634.11,0.00013698,2]
[334971394,1723695043274,-500.0,0.00013698,2]
[334971395,1723695043283,-785.95,0.00013698,2]
[334971396,1723695043292,-696.37,0.00013698,2]
[334971397,1723695043303,-500.0,0.00013698,2]
[334971398,1723695043312,-500.0,0.00013698,2]
[334971399,1723695043322,-500.0,0.00013698,2]
[334971402,1723695043331,-502.5338499,0.00013698,2]
[334971404,1723695043340,-501.93233143,0.00013698,2]
[334971406,1723695043350,-661.53,0.00013698,2]
[334971408,1723695043366,-500.0,0.00013698,2]
[334971411,1723695043380,-505.17961191,0.00013698,2]
[334971413,1723695043389,-501.95569727,0.00013698,2]
[334971415,1723695043398,-642.61,0.00013698,2]
[334971417,1723695043408,-500.0,0.00013698,2]
[334971419,1723695043417,-615.24,0.00013698,2]
[334971421,1723695043427,-501.12442269,0.00013698,2]
[334971423,1723695043436,-500.0,0.00013698,2]
[334971425,1723695043445,-500.0,0.00013698,2]
[334971426,1723695043455,-500.0,0.00013698,2]
[334971427,1723695043465,-500.0,0.00013698,2]
[334971428,1723695043474,-500.0,0.00013698,2]
[334971429,1723695043483,-500.0,0.00013698,2]
[334971430,1723695043492,-502.916702,0.00013698,2]
[334971431,1723695043501,-502.48710845,0.00013698,2]
[334971432,1723695043510,-856.34,0.00013698,2]
[334971433,1723695043519,-500.0,0.00013698,2]
[334971434,1723695043528,-500.0,0.00013698,2]
[334971435,1723695043537,-696.93,0.00013698,2]
[334971436,1723695043546,-500.0,0.00013698,2]
[334971437,1723695043555,-500.0,0.00013698,2]
[334971438,1723695043564,-500.0,0.00013698,2]
[334971439,1723695043574,-674.4,0.00013698,2]
[334971440,1723695043583,-504.02825536,0.00013698,2]
[334971441,1723695043592,-629.01,0.00013698,2]
[334971442,1723695043602,-338.69887022,0.00013698,2]
[334971443,1723695043612,-716.89,0.00013698,2]
[334971444,1723695043621,-500.0,0.00013698,2]
[334971445,1723695043630,-500.0,0.00013698,2]
[334971446,1723695043640,-800.31040075,0.00013698,2]
[334971447,1723695044163,-401.61959925,0.00013698,2]
[334971448,1723695044174,-416.51040075,0.00013698,2]
[334971469,1723695046616,-292.83,0.00010959,2]
[334971470,1723695046627,-32.50863209,0.00013598,2]
[334971471,1723695046639,-273.37336231,0.00013598,2]
[334971472,1723695046669,-1694.1180056,0.00013598,2]
[334971473,1723695046678,-952.0319944,0.00013697,2]
[334971474,1723695055873,311.01,0.00018,31]
[334971475,1723695055910,311.01,0.00018,31]
[334971476,1723695055968,311.01,0.00018,31]
[334971477,1723695056031,311.01,0.00018,31]
[334971478,1723695056094,311.01,0.00018,31]
[334971479,1723695056180,311.01,0.00018,31]
[334971480,1723695056243,311.01,0.00018,31]
[334971481,1723695056296,311.01,0.00018,31]
[334971482,1723695056358,311.01,0.00018,31]
[334971483,1723695056420,311.01,0.00018,31]
[334971484,1723695056476,311.01,0.00018,31]
[334971485,1723695056535,311.01,0.00018,31]
[334971486,1723695056598,311.01,0.00018,31]
[334971487,1723695056660,311.01,0.00018,31]
[334971488,1723695056721,311.01,0.00018,31]
[334971489,1723695056787,311.01,0.00018,31]
[334971490,1723695056844,311.01,0.00018,31]
[334971491,1723695056897,311.01,0.00018,31]
[334971492,1723695056959,311.01,0.00018,31]
[334971493,1723695057020,311.01,0.00018,31]
[334971507,1723696127747,1980.75618324,0.00025,120]
[334971536,1723696231681,-273.37336231,9.801e-05,2]
[334971537,1723696231691,-236.9298692,0.0001,2]
[334971538,1723696231704,-586.23740997,0.0001,2]
[334971539,1723696231716,-2087.7882092,0.0001,2]
[334971540,1723696231728,-215.0,0.00010958,2]
[334971541,1723696231740,-244.02,0.00010959,2]
[334971542,1723696231752,-203.35,0.00010959,2]
[334971543,1723696231762,-169.46,0.00010959,2]
[334971544,1723696231771,-847.34,0.00010959,2]
[334971545,1723696231781,-951.82895192,0.00012163,2]
[334971546,1723696231790,-532.9701574,0.00012499,2]
[334971547,1723696231800,-288.15834108,0.00012886,2]
[334971548,1723696231810,-155.26280289,0.00012898,2]
[334971549,1723696231819,-190.26945694,0.00012934,2]
[334971550,1723696231829,-276.141728,0.00012986,2]
[334971551,1723696231839,-543.78456931,0.00012991,2]
[334971552,1723696231848,-465.00187967,0.00013079,2]
[334971553,1723696231858,-4906.82309315,0.00013305,2]
[334971588,1723696238074,-423.70171104,0.00012934,2]
[334971589,1723696238084,-38357.1993751,0.00013305,2]
[334971594,1723696238132,-929.83747591,0.00013305,2]
[334971709,1723696240886,-273.37336231,9.9e-05,2]
[334971710,1723696240898,-22193.77451748,0.00013305,2]
[334971711,1723696240908,-5324.62888985,0.00013585,2]
[334971712,1723696240919,-6463.62175628,0.00013588,2]
[334971713,1723696240929,-6463.62175627,0.00013591,2]
[334971714,1723696240940,-6463.62175627,0.00013594,2]
[334971716,1723696240949,-6463.62175627,0.00013596,2]
[334971718,1723696240959,-6463.62175627,0.00013599,2]
[334971720,1723696240968,-696.05390853,0.00013599,2]
[334971722,1723696240978,-153.0,0.000136,2]
[334971724,1723696240987,-336.6717376,0.000136,2]
[334971726,1723696240997,-2489.62340804,0.00013678,2]
[334971728,1723696241007,-622.40585201,0.00013679,2]
[334971730,1723696241017,-5601.65266809,0.00013688,2]
[334971732,1723696241027,-622.40585201,0.00013689,2]
[334971734,1723696241036,-622.40585201,0.00013689,2]
[334971735,1723696241046,-622.40585201,0.0001369,2]
[334971736,1723696241056,-154.80649189,0.00013697,2]
[334971737,1723696241066,-665.04001235,0.00013697,2]
[334971738,1723696241077,-1244.21788581,0.00013697,2]
[334971739,1723696241089,-159.68717361,0.00013697,2]
[334971741,1723696241098,-13584.24768065,0.00013698,2]
[334971743,1723696241109,-5471.97718247,0.00013698,2]
[334971744,1723696241121,-500.0,0.00013698,2]
[334971745,1723696241130,-500.0,0.00013698,2]
[334971746,1723696241140,-705.21,0.00013698,2]
[334971747,1723696241149,-500.0,0.00013698,2]
[334971748,1723696241161,-500.0,0.00013698,2]
[334971749,1723696241183,-500.0,0.00013698,2]
[334971750,1723696241196,-500.0,0.00013698,2]
[334971751,1723696241206,-500.0,0.00013698,2]
[334971752,1723696241217,-500.0,0.00013698,2]
[334971753,1723696241228,-500.0,0.00013698,2]
[334971754,1723696241239,-500.0,0.00013698,2]
[334971755,1723696241249,-500.0,0.00013698,2]
[334971756,1723696241259,-531.35,0.00013698,2]
[334971757,1723696241271,-500.0,0.00013698,2]
[334971758,1723696241282,-500.0,0.00013698,2]
[334971759,1723696241292,-500.0,0.00013698,2]
[334971760,1723696241303,-500.0,0.00013698,2]
[334971761,1723696241314,-500.0,0.00013698,2]
[334971762,1723696241325,-500.0,0.00013698,2]
[334971763,1723696241336,-500.0,0.00013698,2]
[334971764,1723696241348,-603.21,0.00013698,2]
[334971765,1723696241358,-500.0,0.00013698,2]
[334971766,1723696241368,-503.46488869,0.00013698,2]
[334971767,1723696241378,-500.0,0.00013698,2]
[334971768,1723696241388,-500.0,0.00013698,2]
[334971769,1723696241400,-500.0,0.00013698,2]
[334971770,1723696241411,-500.0,0.00013698,2]
[334971771,1723696241421,-500.0,0.00013698,2]
[334971772,1723696241432,-500.0,0.00013698,2]
[334971773,1723696241443,-500.0,0.00013698,2]
[334971774,1723696241453,-500.0,0.00013698,2]
[334971775,1723696241462,-500.0,0.00013698,2]
[334971776,1723696241472,-500.0,0.00013698,2]
[334971777,1723696241483,-500.0,0.00013698,2]
[334971778,1723696241492,-500.0,0.00013698,2]
[334971779,1723696241504,-500.0,0.00013698,2]
[334971780,1723696241514,-500.0,0.00013698,2]
[334971781,1723696241525,-500.0,0.00013698,2]
[334971782,1723696241535,-500.0,0.00013698,2]
[334971783,1723696241547,-500.0,0.00013698,2]
[334971784,1723696241560,-500.11,0.00013698,2]
[334971785,1723696241572,-500.0,0.00013698,2]
[334971786,1723696241584,-718.43,0.00013698,2]
[334971787,1723696241597,-500.0,0.00013698,2]
[334971788,1723696241608,-177.66407953,0.00013698,2]
[334971789,1723696241618,-503.90289316,0.00013698,2]
[334971790,1723696241627,-500.0,0.00013698,2]
[334971791,1723696241639,-500.0,0.00013698,2]
[334971792,1723696241651,-500.0,0.00013698,2]
[334971793,1723696241662,-250.43986305,0.00013698,2]
[334971794,1723696241675,-753.2,0.00013698,2]
[334971795,1723696241686,-500.0,0.00013698,2]
[334971796,1723696241698,-500.0,0.00013698,2]
[334971797,1723696241709,-500.0,0.00013698,2]
[334971798,1723696241719,-500.0,0.00013698,2]
[334971799,1723696241730,-509.35960054,0.00013698,2]
[334971800,1723696241740,-615.84,0.00013698,2]
[334971801,1723696241750,-500.0,0.00013698,2]
[334971802,1723696241761,-688.19,0.00013698,2]
[334971803,1723696241773,-709.64,0.00013698,2]
[334971804,1723696241784,-500.0,0.00013698,2]
[334971805,1723696241795,-545.2,0.00013698,2]
[334971806,1723696241806,-667.89,0.00013698,2]
[334971807,1723696241818,-500.0,0.00013698,2]
[334971808,1723696241830,-500.0,0.00013698,2]
[334971809,1723696241841,-501.16693727,0.00013698,2]
[334971810,1723696241855,-502.8873877,0.00013698,2]
[334971811,1723696241866,-503.2818421,0.00013698,2]
[334971812,1723696241876,-572.90696156,0.00013698,2]
[334971813,1723696241886,-643.61,0.00013698,2]
[334971814,1723696241896,-717.83,0.00013698,2]
[334971815,1723696241906,-500.0,0.00013698,2]
[334971816,1723696241917,-500.0,0.00013698,2]
[334971817,1723696241928,-646.3,0.00013698,2]
[334971818,1723696241940,-500.0,0.00013698,2]
[334971819,1723696241950,-508.16,0.00013698,2]
[334971820,1723696241960,-1223.46,0.00013698,2]
[334971821,1723696241970,-500.0,0.00013698,2]
[334971822,1723696241979,-500.0,0.00013698,2]
[334971823,1723696241988,-500.0,0.00013698,2]
[334971824,1723696241998,-500.0,0.00013698,2]
[334971825,1723696242012,-500.0,0.00013698,2]
[334971826,1723696242022,-500.0,0.00013698,2]
[334971827,1723696242033,-500.0,0.00013698,2]
[334971828,1723696242042,-500.0,0.00013698,2]
[334971829,1723696242052,-500.0,0.00013698,2]
[334971830,1723696242061,-500.0,0.00013698,2]
[334971831,1723696242071,-500.0,0.00013698,2]
[334971832,1723696242081,-500.0,0.00013698,2]
[334971833,1723696242090,-500.0,0.00013698,2]
[334971834,1723696242100,-500.0,0.00013698,2]
[334971835,1723696242110,-501.36889886,0.00013698,2]
[334971836,1723696242119,-614.31,0.00013698,2]
[334971837,1723696242128,-500.0,0.00013698,2]
[334971838,1723696242137,-500.0,0.00013698,2]
[334971839,1723696242147,-500.0,0.00013698,2]
[334971840,1723696242157,-601.47,0.00013698,2]
[334971841,1723696242166,-691.0,0.00013698,2]
[334971842,1723696242176,-407.62334912,0.00013698,2]
[334971843,1723696242186,-500.0,0.00013698,2]
[334971844,1723696242207,-500.0,0.00013698,2]
[334971845,1723696242217,-259.13471611,0.00013698,2]
[334971846,1723696242226,-500.88110826,0.00013698,2]
[334971847,1723696242238,-500.0,0.00013698,2]
[334971848,1723696242249,-500.96412065,0.00013698,2]
[334971849,1723696242260,-500.0,0.00013698,2]
[334971850,1723696242270,-1146.67,0.00013698,2]
[334971851,1723696242281,-500.0,0.00013698,2]
[334971852,1723696242291,-500.0,0.00013698,2]
[334971853,1723696242300,-500.0,0.00013698,2]
[334971854,1723696242310,-500.0,0.00013698,2]
[334971855,1723696242319,-728.3,0.00013698,2]
[334971856,1723696242328,-504.42593464,0.00013698,2]
[334971857,1723696242338,-500.0,0.00013698,2]
[334971858,1723696242348,-500.0,0.00013698,2]
[334971859,1723696242359,-500.0,0.00013698,2]
[334971860,1723696242370,-501.74952371,0.00013698,2]
[334971861,1723696242381,-500.0,0.00013698,2]
[334971862,1723696242390,-500.0,0.00013698,2]
[334971863,1723696242400,-500.0,0.00013698,2]
[334971864,1723696242411,-500.0,0.00013698,2]
[334971865,1723696242422,-500.0,0.00013698,2]
[334971866,1723696242431,-500.0,0.00013698,2]
[334971867,1723696242443,-506.77,0.00013698,2]
[334971868,1723696242454,-500.0,0.00013698,2]
[334971870,1723696242465,-500.0,0.00013698,2]
[334971872,1723696242474,-500.0,0.00013698,2]
[334971873,1723696242485,-500.0,0.00013698,2]
[334971874,1723696242496,-500.0,0.00013698,2]
[334971875,1723696242507,-500.0,0.00013698,2]
[334971876,1723696242517,-500.0,0.00013698,2]
[334971877,1723696242529,-789.71,0.00013698,2]
[334971878,1723696242542,-500.0,0.00013698,2]
[334971879,1723696242552,-500.0,0.00013698,2]
[334971880,1723696242563,-500.0,0.00013698,2]
[334971881,1723696242574,-500.0,0.00013698,2]
[334971882,1723696242584,-500.0,0.00013698,2]
[334971883,1723696242598,-500.0,0.00013698,2]
[334971884,1723696242609,-615.79,0.00013698,2]
[334971885,1723696242618,-500.0,0.00013698,2]
[334971886,1723696242628,-500.0,0.00013698,2]
[334971887,1723696242638,-943.3,0.00013698,2]
[334971888,1723696242647,-507.9281735,0.00013698,2]
[334971889,1723696242657,-502.48382303,0.00013698,2]
[334971890,1723696242666,-500.0,0.00013698,2]
[334971891,1723696242676,-500.0,0.00013698,2]
[334971892,1723696242686,-500.0,0.00013698,2]
[334971893,1723696242697,-500.0,0.00013698,2]
[334971894,1723696242707,-742.86,0.00013698,2]
[334971895,1723696242717,-820.8,0.00013698,2]
[334971896,1723696242726,-754.75,0.00013698,2]
[334971897,1723696242737,-945.2,0.00013698,2]
[334971898,1723696242748,-814.69,0.00013698,2]
[334971899,1723696242761,-500.0,0.00013698,2]
[334971900,1723696242770,-725.69,0.00013698,2]
[334971901,1723696242780,-500.0,0.00013698,2]
[334971902,1723696242790,-797.5,0.00013698,2]
[334971903,1723696242799,-501.49030972,0.00013698,2]
[334971904,1723696242809,-501.8904319,0.00013698,2]
[334971905,1723696242818,-709.17,0.00013698,2]
[334971906,1723696242827,-500.0,0.00013698,2]
[334971907,1723696242837,-500.0,0.00013698,2]
[334971908,1723696242848,-690.12,0.00013698,2]
[334971909,1723696242858,-1098.77,0.00013698,2]
[334971910,1723696242867,-852.8,0.00013698,2]
[334971911,1723696242877,-500.0,0.00013698,2]
[334971912,1723696242886,-500.0,0.00013698,2]
[334971913,1723696242896,-500.0,0.00013698,2]
[334971914,1723696242905,-852.98,0.00013698,2]
[334971915,1723696242917,-514.58,0.00013698,2]
[334971916,1723696242928,-502.09583944,0.00013698,2]
[334971917,1723696242940,-648.11,0.00013698,2]
[334971918,1723696242949,-151.0,0.00013698,2]
[334971919,1723696242959,-151.0,0.00013698,2]
[334971921,1723696242968,-151.0,0.00013698,2]
[334971922,1723696242978,-275.855526,0.00013698,2]
[334971923,1723696242988,-616.23,0.00013698,2]
[334971924,1723696242997,-501.45001419,0.00013698,2]
[334971925,1723696243007,-607.69,0.00013698,2]
[334971926,1723696243016,-501.73401599,0.00013698,2]
[334971927,1723696243025,-500.0,0.00013698,2]
[334971928,1723696243035,-589.61,0.00013698,2]
[334971929,1723696243044,-500.0,0.00013698,2]
[334971930,1723696243054,-500.0,0.00013698,2]
[334971931,1723696243063,-500.0,0.00013698,2]
[334971932,1723696243074,-500.0,0.00013698,2]
[334971933,1723696243083,-500.0,0.00013698,2]
[334971934,1723696243094,-500.0,0.00013698,2]
[334971935,1723696243106,-561.46,0.00013698,2]
[334971936,1723696243116,-851.42,0.00013698,2]
[334971937,1723696243127,-502.55644531,0.00013698,2]
[334971938,1723696243138,-500.0,0.00013698,2]
[334971939,1723696243149,-500.0,0.00013698,2]
[334971940,1723696243159,-500.0,0.00013698,2]
[334971941,1723696243169,-516.15225934,0.00013698,2]
[334971942,1723696243181,-507.42355436,0.00013698,2]
[334971943,1723696243192,-502.91733671,0.00013698,2]
[334971944,1723696243202,-500.0,0.00013698,2]
[334971945,1723696243214,-500.0,0.00013698,2]
[334971946,1723696243223,-500.0,0.00013698,2]
[334971947,1723696243234,-567.83,0.00013698,2]
[334971948,1723696243245,-500.0,0.00013698,2]
[334971949,1723696243255,-500.0,0.00013698,2]
[334971950,1723696243264,-500.0,0.00013698,2]
[334971951,1723696243275,-500.0,0.00013698,2]
[334971952,1723696243285,-500.0,0.00013698,2]
[334971953,1723696243294,-676.14,0.00013698,2]
[334971954,1723696243304,-500.0,0.00013698,2]
[334971955,1723696243314,-500.0,0.00013698,2]
[334971956,1723696243323,-500.0,0.00013698,2]
[334971957,1723696243333,-500.0,0.00013698,2]
[334971958,1723696243346,-500.0,0.00013698,2]
[334971959,1723696243357,-500.0,0.00013698,2]
[334971961,1723696243366,-620.62,0.00013698,2]
[334971962,1723696243376,-500.0,0.00013698,2]
[334971963,1723696243386,-502.75446558,0.00013698,2]
[334971964,1723696243395,-281.09634641,0.00013698,2]
[334971965,1723696243405,-500.0,0.00013698,2]
[334971966,1723696243414,-664.01,0.00013698,2]
[334971969,1723696243561,-500.0,0.00013698,2]
[334971970,1723696243589,-777.43,0.00013698,2]
[334971971,1723696243602,-500.0,0.00013698,2]
[334971972,1723696243612,-501.41124814,0.00013698,2]
[334971973,1723696243623,-534.2,0.00013698,2]
[334971974,1723696243635,-500.0,0.00013698,2]
[334971975,1723696243646,-500.0,0.00013698,2]
[334971976,1723696243656,-590.23,0.00013698,2]
[334971977,1723696243666,-500.0,0.00013698,2]
[334971978,1723696243677,-500.0,0.00013698,2]
[334971979,1723696243686,-791.6,0.00013698,2]
[334971980,1723696243697,-500.0,0.00013698,2]
[334971981,1723696243707,-658.18713122,0.00013698,2]
[334971982,1723696244606,-225.64286878,0.00013698,2]
[334971983,1723696244616,-500.0,0.00013698,2]
[334971984,1723696244625,-500.0,0.00013698,2]
[334971985,1723696244635,-500.0,0.00013698,2]
[334971986,1723696244644,-667.98,0.00013698,2]
[334971987,1723696244655,-500.0,0.00013698,2]
[334971988,1723696244665,-502.70697404,0.00013698,2]
[334971989,1723696244674,-697.41,0.00013698,2]
[334971990,1723696244684,-500.0,0.00013698,2]
[334971991,1723696244698,-502.3605386,0.00013698,2]
[334971992,1723696244707,-1155.13,0.00013698,2]
[334971993,1723696244716,-500.0,0.00013698,2]
[334971994,1723696244725,-736.94,0.00013698,2]
[334971995,1723696244734,-500.0,0.00013698,2]
[334971996,1723696244743,-384.37048524,0.00013698,2]
[334971997,1723696244752,-500.0,0.00013698,2]
[334971998,1723696244762,-501.81276043,0.00013698,2]
[334971999,1723696244771,-500.0,0.00013698,2]
[334972000,1723696244780,-500.0,0.00013698,2]
[334972001,1723696244790,-751.24,0.00013698,2]
[334972002,1723696244799,-151.0,0.00013698,2]
[334972003,1723696244808,-270.773841,0.00013698,2]
[334972004,1723696244817,-500.0,0.00013698,2]
[334972005,1723696244826,-500.0,0.00013698,2]
[334972006,1723696244835,-500.0,0.00013698,2]
[334972007,1723696244845,-500.0,0.00013698,2]
[334972008,1723696244855,-1131.32,0.00013698,2]
[334972009,1723696244865,-500.0,0.00013698,2]
[334972010,1723696244874,-516.35299857,0.00013698,2]
[334972011,1723696244885,-500.0,0.00013698,2]
[334972012,1723696244894,-500.0,0.00013698,2]
[334972013,1723696244903,-500.0,0.00013698,2]
[334972014,1723696244912,-500.0,0.00013698,2]
[334972015,1723696244921,-500.0,0.00013698,2]
[334972016,1723696244930,-503.50609522,0.00013698,2]
[334972017,1723696244940,-610.52,0.00013698,2]
[334972018,1723696244954,-681.5,0.00013698,2]
[334972019,1723696244963,-750.59,0.00013698,2]
[334972020,1723696244973,-751.08,0.00013698,2]
[334972021,1723696244982,-1185.67,0.00013698,2]
[334972022,1723696244991,-500.0,0.00013698,2]
[334972023,1723696245001,-462.458343,0.00013698,2]
[334972024,1723696245011,-500.0,0.00013698,2]
[334972025,1723696245020,-462.458343,0.00013698,2]
[334972026,1723696245029,-462.458343,0.00013698,2]
[334972027,1723696245040,-462.458343,0.00013698,2]
[334972028,1723696245051,-462.458343,0.00013698,2]
[334972029,1723696245060,-760.48,0.00013698,2]
[334972030,1723696245070,-462.458343,0.00013698,2]
[334972031,1723696245080,-462.458343,0.00013698,2]
[334972032,1723696245090,-500.0,0.00013698,2]
[334972033,1723696245100,-500.0,0.00013698,2]
[334972034,1723696245110,-462.458343,0.00013698,2]
[334972035,1723696245120,-462.458343,0.00013698,2]
[334972036,1723696245130,-462.458343,0.00013698,2]
[334972037,1723696245139,-462.458343,0.00013698,2]
[334972038,1723696245149,-462.458343,0.00013698,2]
[334972039,1723696245158,-500.0,0.00013698,2]
[334972040,1723696245168,-462.458343,0.00013698,2]
[334972041,1723696245178,-462.458343,0.00013698,2]
[334972042,1723696245189,-500.18672598,0.00013698,2]
[334972043,1723696245201,-500.0,0.00013698,2]
[334972044,1723696245211,-178.03512,0.00013698,2]
[334972045,1723696245220,-178.03512,0.00013698,2]